fUST/lending_fUST_20240429
["ID","MTS","AMOUNT","RATE_DAILY","PERIOD"]
[324886763,1714397444621,-153.0,0.0003937,2]
[324886764,1714397444630,-153.0,0.0003937,2]
[324886765,1714397444640,-150.5,0.0003937,35]
[324886766,1714397444650,-233.5,0.0003937,35]
[324886767,1714397444659,-150.5,0.0003937,35]
[324886768,1714397444669,-249.19,0.0003937,7]
[324886769,1714397444679,-150.5,0.0003938,35]
[324886770,1714397444688,-299.5,0.0003938,35]
[324886771,1714397444698,-150.5,0.0003938,35]
[324886772,1714397444710,-150.5,0.0003938,35]
[324886773,1714397444719,-150.5,0.0003938,7]
[324886774,1714397444729,-9036.22,0.00039389,2]
[324886775,1714397444738,-9036.22,0.00039389,2]
[324886776,1714397444748,-9036.22,0.00039389,2]
[324886777,1714397444757,-1164.65536829,0.00039389,2]
[324886778,1714397444775,-7871.56463171,0.00039389,2]
[324886779,1714397444784,-9036.22,0.00039389,2]
[324886780,1714397444794,-9036.22,0.00039389,2]
[324886781,1714397444804,-9036.22,0.00039389,2]
[324886782,1714397444813,-9036.22,0.00039389,2]
[324886783,1714397444823,-9036.22,0.00039389,2]
[324886784,1714397444832,-9036.22,0.00039389,2]
[324886785,1714397444842,-160.13,0.0003939,35]
[324886786,1714397444919,-150.5,0.0003939,35]
[324886787,1714397444929,-150.5,0.0003939,35]
[324886788,1714397444938,-150.5,0.0003939,35]
[324886789,1714397444948,-150.5,0.0003939,7]
[324886790,1714397444960,-232.10092761,0.00039397,30]
[324886791,1714397444970,-1486807.63551967,0.000394,2]
[324886792,1714397444980,-300.0,0.000394,13]
[324886793,1714397444989,-381.0,0.000394,14]
[324886794,1714397444999,-514.6318,0.000394,2]
[324886795,1714397445009,-169.366558,0.000394,2]
[324886796,1714397445019,-264.0323399,0.00039452,2]
[324886797,1714397445028,-153.0,0.00039452,2]
[324886798,1714397445038,-203.7672836,0.00039452,2]
[324886799,1714397445048,-1000.0,0.000395,2]
[324886800,1714397445057,-978.30257748,0.00039726,28]
[324886801,1714397445066,-162.0,0.00039871,14]
[324886802,1714397445076,-1000.0,0.000399,120]
[324886803,1714397445085,-500.0,0.00039911,5]
[324886804,1714397445094,-620.0,0.00039936,2]
[324886805,1714397445104,-150.5,0.0003999,35]
[324886806,1714397445113,-183.83864397,0.00039999,31]
[324886807,1714397445123,-254.54068726,0.00039999,31]
[324886808,1714397445136,-199.83853258,0.00039999,31]
[324886809,1714397445145,-500.0,0.00039999,31]
[324886810,1714397445155,-531.43801623,0.00039999,31]
[324886811,1714397445164,-500.0,0.00039999,31]
[324886812,1714397445175,-4250.69880184,0.0004,4]
[324886813,1714397445185,-202.42872954,0.0004,2]
[324886814,1714397445195,-956.45168326,0.0004,10]
[324886815,1714397445204,-7477.562696,0.0004,2]
[324886816,1714397445220,-4802.1632447,0.0004,2]
[324886817,1714397445230,-1089.01567933,0.0004,2]
[324886818,1714397445239,-1124.89179442,0.0004,15]
[324886819,1714397445248,-995.16145114,0.0004,10]
[324886820,1714397445257,-56045.77280973,0.0004,7]
[324886821,1714397445266,-5000.0,0.0004,120]
[324886822,1714397445275,-2707.999999,0.0004,30]
[324886823,1714397445285,-210.13266618,0.0004,120]
[324886824,1714397445295,-1008.0,0.0004,120]
[324886825,1714397445304,-359.6913144,0.0004,2]
[324886826,1714397445314,-200.0,0.0004,2]
[324886827,1714397445323,-153.13,0.0004,120]
[324886828,1714397445333,-150.5,0.0004007,35]
[324886829,1714397445342,-569.047712,0.00040073,2]
[324886830,1714397445352,-151.0,0.00040073,2]
[324886831,1714397445361,-569.047712,0.00040073,2]
[324886832,1714397445370,-432.604818,0.00040073,2]
[324886833,1714397445380,-432.604818,0.00040073,2]
[324886834,1714397445390,-151.0,0.00040073,2]
[324886835,1714397445400,-466.666828,0.00040073,2]
[324886836,1714397445410,-466.666828,0.00040073,2]
[324886837,1714397445421,-151.0,0.00040073,2]
[324886838,1714397445430,-151.0,0.00040073,2]
[324886839,1714397445442,-1000.812377,0.00040073,2]
[324886840,1714397445452,-1000.812377,0.00040073,2]
[324886841,1714397445468,-151.0,0.00040073,2]
[324886842,1714397445477,-808927.63352883,0.00040073,90]
[324886848,1714397445861,-635.78,0.0002699,3]
[324886850,1714397445870,-570.6536295,0.0002836,3]
[324886883,1714397446327,-700.9063705,0.0002836,3]
[324886884,1714397446338,-2451.538128,0.00029614,4]
[324886885,1714397446347,-2451.538128,0.00034104,6]
[324886886,1714397446357,-2664.06424114,0.00040073,90]
[324886887,1714397446369,-949.37503905,0.00040073,90]
[324886888,1714397461666,229.6937319,0.00015312,2]
[324886889,1714397547555,374.77939106,9.999e-05,2]
[324886891,1714397581427,300.0,0.00014728,2]
[324886892,1714397630453,300000.0,0.00016,2]
[324886893,1714397700697,300.0,0.00014728,2]
[324886894,1714397704536,300.0,0.00014728,2]
[324886895,1714397882742,300.0,0.00014728,2]
[324886896,1714398063269,1313.01433148,0.0001,2]
[324886897,1714398076801,206.23930448,9.999e-05,2]
[324886898,1714398078138,564.97951661,9.999e-05,2]
[324886899,1714398080470,460.13643782,9.999e-05,2]
[324886900,1714398085377,1203.25513556,9.999e-05,2]
[324886901,1714398086091,158.88317173,9.999e-05,2]
[324886902,1714398086657,2590.01777784,9.999e-05,2]
[324886903,1714398095598,164.0768642,9.999e-05,2]
[324886904,1714398101734,16098.46283785,0.0001,2]
[324886905,1714398103780,409.22868854,9.999e-05,2]
[324886906,1714398107188,521.1072121,0.0001,2]
[324886907,1714398125181,386.70052672,9.999e-05,2]
[324886908,1714398125217,1104.98243285,9.999e-05,2]
[324886909,1714398131672,13895.01756715,0.0001,2]
[324886910,1714398131702,2203.4452707,0.0001,2]
[324886912,1714398133189,521.1072121,0.0001,2]
[324886913,1714398133797,362.29479417,9.999e-05,2]
[324886914,1714398140745,981.56171248,9.999e-05,2]
[324886915,1714398146098,526.83448136,9.999e-05,2]
[324886916,1714398151995,4686.2168855,0.0001,2]
[324886917,1714398153191,521.1072121,0.0001,2]
[324886918,1714398154901,154.76784823,9.999e-05,2]
[324886919,1714398177297,255.62543914,0.0001,2]
[324886920,1714398199523,154.76784823,9.999e-05,2]
[324886921,1714398216543,550.01932666,9.999e-05,2]
[324886922,1714398235248,154.76784823,9.999e-05,2]
[324886924,1714398336166,-152.22260922,0.00017994,2]
[324886925,1714398466227,520.45497619,9.999e-05,2]
[324886926,1714398469989,890.802326,9.999e-05,2]
[324886928,1714398552125,-154.76784823,0.00014719,2]
[324886929,1714398552145,-300.0,0.0001472,2]
[324886930,1714398552167,-300.0,0.0001472,2]
[324886931,1714398552188,-1891.6935913,0.0001472,2]
[324886932,1714398552207,-206.23930448,0.00014721,2]
[324886933,1714398552227,-2590.01777784,0.00014721,2]
[324886934,1714398552245,-564.97951661,0.00014721,2]
[324886935,1714398552265,-362.29479417,0.00014722,2]
[324886936,1714398552285,-1019.24443042,0.00014722,2]
[324886937,1714398564148,-293.76990106,0.00014722,2]
[324886938,1714398564167,-15847.51407759,0.00014723,2]
[324886939,1714398564236,-4348.31026901,0.00014723,2]
[324886940,1714398564256,-1491.68295957,0.00014727,2]
[324887002,1714398633219,-250.0,0.00015928,2]
[324887003,1714398633229,-166.666666,0.0001784,2]
[324887004,1714398633238,-1879.62800973,0.00017996,2]
[324887005,1714398633248,-768.52966256,0.00017997,2]
[324887006,1714398633258,-189.36782433,0.00018,2]
[324887007,1714398633267,-300.0,0.00018231,2]
[324887008,1714398633278,-5980.5937287,0.00018232,2]
[324887009,1714398633287,-954.90928608,0.000189,2]
[324887010,1714398633297,-154.84515485,0.00018903,2]
[324887011,1714398633306,-160.985937,0.00019178,2]
[324887012,1714398633316,-300.0,0.00019797,2]
[324887013,1714398633328,-154.86062544,0.00019798,2]
[324887014,1714398633338,-730.38126429,0.00019798,2]
[324887015,1714398633348,-153.43131253,0.00019799,2]
[324887016,1714398633357,-974.0023866,0.00019865,2]
[324887017,1714398633367,-2000.0,0.00019877,2]
[324887018,1714398633379,-958.44,0.00019888,3]
[324887019,1714398633391,-479.22,0.00019888,3]
[324887020,1714398633400,-239.61,0.00019888,3]
[324887021,1714398633409,-718.86,0.00019888,3]
[324887022,1714398633419,-1890.08486794,0.00019896,2]
[324887024,1714398633428,-155.01523868,0.00019896,2]
[324887025,1714398633437,-205.97066738,0.00019896,2]
[324887026,1714398633447,-670.29575733,0.00019896,2]
[324887027,1714398633456,-1284.48616328,0.00019896,2]
[324887028,1714398633465,-361.9639164,0.00019896,2]
[324887030,1714398633475,-1489.96029447,0.00019896,2]
[324887032,1714398633487,-337.66555346,0.00019896,2]
[324887034,1714398633497,-2869.80047861,0.00019896,2]
[324887036,1714398633508,-17326.02386799,0.00019896,2]
[324887037,1714398633517,-1575.6250749,0.00019896,2]
[324887039,1714398633529,-877.642653,0.00019897,2]
[324887041,1714398633538,-500.0,0.00019897,2]
[324887042,1714398633548,-446.46527822,0.00019897,2]
[324887043,1714398633557,-273.83107611,0.00019897,2]
[324887044,1714398633567,-500.0,0.00019897,2]
[324887045,1714398633576,-218.99792744,0.00019897,2]
[324887046,1714398633586,-356.51739469,0.00019897,2]
[324887047,1714398633595,-361.15311247,0.00019897,2]
[324887048,1714398633605,-500.0,0.00019897,2]
[324887049,1714398633614,-154.79876161,0.00019897,2]
[324887050,1714398633624,-27137.25790131,0.00019898,2]
[324887051,1714398633653,-311.87,0.00019897,2]
[324887080,1714398638529,-66.42421461,0.00019897,2]
[324887081,1714398638538,-17993.25727914,0.00019898,2]
[324887082,1714398638652,-10523.41631277,0.00019898,2]
[324887083,1714398638664,-53695.85432429,0.00019898,2]
[324887085,1714398638675,-919.02180487,0.00019898,2]
[324887087,1714398638687,-33081.39965772,0.00019898,2]
[324887090,1714398638703,-159184.41922686,0.00019898,2]
[324887092,1714398638715,-107666.26272513,0.00019898,2]
[324887094,1714398638724,-980.82202636,0.00019898,2]
[324887096,1714398638734,-190.94937985,0.00019898,2]
[324887098,1714398638743,-526.43256382,0.00019898,2]
[324887099,1714398638752,-154.93793206,0.00019898,2]
[324887100,1714398638762,-154.84515485,0.00019898,2]
[324887101,1714398638771,-549.67240308,0.00019898,2]
[324887102,1714398638780,-154.93793206,0.00019898,2]
[324887103,1714398638789,-520.05280073,0.00019898,2]
[324887104,1714398638799,-42175.65649445,0.00019899,2]
[324887105,1714398638808,-408.93236744,0.00019899,2]
[324887106,1714398638818,-43493.58645671,0.000199,2]
[324887107,1714398638828,-5794.99327144,0.00019978,2]
[324887108,1714398638839,-11314.71799462,0.00019997,2]
[324887109,1714398638848,-171.39787054,0.00019997,2]
[324887110,1714398638858,-2533.21970642,0.00019997,2]
[324887111,1714398638868,-155.02956039,0.00019997,2]
[324887112,1714398638878,-2625.35839845,0.00019997,2]
[324887113,1714398638893,-1621.09215219,0.00019997,2]
[324887114,1714398638902,-719.84911317,0.00019997,2]
[324887115,1714398638911,-154.84515485,0.00019997,2]
[324887116,1714398638920,-468.70122511,0.00019997,2]
[324887117,1714398638929,-212.18025179,0.00019997,2]
[324887118,1714398638938,-1091.11259634,0.00019997,2]
[324887119,1714398638947,-475.59379847,0.00019997,2]
[324887120,1714398638956,-459.76143614,0.00019997,2]
[324887121,1714398638966,-203.13720459,0.00019997,2]
[324887122,1714398638975,-158.75481788,0.00019997,2]
[324887123,1714398638985,-1202.42195094,0.00019997,2]
[324887124,1714398638995,-164.01238014,0.00019997,2]
[324887125,1714398639005,-7997.71525966,0.00019998,2]
[324887126,1714398639014,-3134.48557274,0.00019998,7]
[324887127,1714398639025,-80000.0,0.0002,2]
[324887128,1714398639035,-154.76784823,0.0002,2]
[324887129,1714398639045,-329.93912296,0.0002,2]
[324887130,1714398639054,-10481.03229319,0.0002,2]
[324887131,1714398639064,-278.30883524,0.0002,2]
[324887132,1714398639074,-154.76784823,0.0002,2]
[324887133,1714398639083,-525.01331286,0.0002,4]
[324887134,1714398639092,-67415.61392424,0.0002,2]
[324887135,1714398639101,-241.68429594,0.0002,2]
[324887136,1714398639110,-200.0,0.0002,2]
[324887137,1714398639120,-420.0,0.00020054,2]
[324887138,1714398639130,-1916.88,0.00021258,3]
[324887139,1714398639144,-958.44,0.00021258,3]
[324887140,1714398639153,-479.22,0.00021258,3]
[324887141,1714398639163,-420.0,0.00021561,2]
[324887142,1714398639172,-160.0,0.000216,2]
[324887143,1714398639181,-10000.0,0.00021918,2]
[324887144,1714398639191,-613.1943728,0.00021918,2]
[324887145,1714398639200,-159.19819518,0.00022,2]
[324887146,1714398639209,-170.68510943,0.00022,2]
[324887147,1714398639218,-587.0,0.00022059,2]
[324887148,1714398639228,-320.0,0.00022148,2]
[324887149,1714398639237,-620.15013183,0.00022238,2]
[324887150,1714398639246,-160.541666,0.00022466,2]
[324887151,1714398639256,-168.333334,0.00022466,2]
[324887152,1714398639266,-169.30556,0.00022466,2]
[324887153,1714398639276,-480.0,0.00022696,2]
[324887154,1714398639285,-714.0781204,0.00023,2]
[324887155,1714398639295,-468.03084457,0.00023244,2]
[324887156,1714398639304,-620.00750659,0.00023349,2]
[324887157,1714398639314,-954.90928608,0.000239,2]
[324887158,1714398639324,-693.32219262,0.00024,2]
[324887159,1714398639334,-823.0,0.00024265,2]
[324887160,1714398639343,-620.00037533,0.00024517,2]
[324887161,1714398639353,-500.0,0.00024657,2]
[324887162,1714398639362,-500.0,0.00024657,2]
[324887163,1714398639371,-200.0,0.00024658,2]
[324887164,1714398639380,-380.0,0.00024658,2]
[324887165,1714398639395,-500.0,0.00024712,2]
[324887166,1714398639404,-500.0,0.00024767,2]
[324887167,1714398639414,-500.0,0.00024821,2]
[324887168,1714398639423,-500.0,0.00024876,2]
[324887169,1714398639433,-500.0,0.00024931,2]
[324887170,1714398639442,-500.0,0.00024986,2]
[324887171,1714398639452,-151.13418049,0.00024989,2]
[324887172,1714398639461,-301.63978297,0.00025,2]
[324887173,1714398639470,-154.76784823,0.00025,2]
[324887174,1714398639480,-154.76784823,0.00025,2]
[324887175,1714398639490,-500.0,0.00025041,2]
[324887176,1714398639501,-978.30257748,0.00025479,2]
[324887177,1714398639511,-620.00001877,0.00025743,2]
[324887178,1714398639520,-150.0,0.00025989,2]
[324887179,1714398639531,-2000.0,0.000266,2]
[324887180,1714398639541,-2000.0,0.000266,2]
[324887181,1714398639550,-2000.0,0.000266,2]
[324887182,1714398639561,-2000.0,0.000266,2]
[324887183,1714398639571,-1152.0,0.00026692,2]
[324887184,1714398639582,-150.0,0.00026989,2]
[324887185,1714398639591,-8527.63031331,0.00027,2]
[324887186,1714398639600,-620.00000094,0.0002703,2]
[324887187,1714398639610,-166.666666,0.00027397,2]
[324887188,1714398639620,-150.0,0.00027989,2]
[324887189,1714398639631,-508.83988954,0.00028,2]
[324887190,1714398639647,-295.78364594,0.00028,2]
[324887191,1714398639657,-2673.1589257,0.00028,2]
[324887192,1714398639667,-5001.0,0.00028,2]
[324887193,1714398639676,-166.666666,0.00028038,2]
[324887194,1714398639686,-620.00000005,0.00028381,2]
[324887195,1714398639696,-168.373609,0.00028493,2]
[324887196,1714398639706,-168.373609,0.00028493,31]
[324887197,1714398639716,-168.373609,0.00028493,61]
[324887198,1714398639726,-168.373609,0.00028493,90]
[324887199,1714398639735,-168.373609,0.00028493,120]
[324887200,1714398639744,-150.0,0.0002863,2]
[324887201,1714398639753,-150.287,0.0002863,2]
[324887202,1714398639762,-224.837,0.0002863,2]
[324887203,1714398639771,-166.666666,0.00028679,2]
[324887204,1714398639781,-954.90928608,0.000289,2]
[324887205,1714398639791,-150.0,0.00028989,2]
[324887206,1714398639801,-2672.0,0.00029,2]
[324887207,1714398639810,-4999.0,0.00029,2]
[324887208,1714398639820,-160.541666,0.00029202,2]
[324887209,1714398639830,-166.666666,0.00029321,2]
[324887210,1714398639840,-1613.0,0.00029361,2]
[324887211,1714398639849,-620.0,0.00029801,2]
[324887212,1714398639859,-166.666666,0.00029962,2]
[324887213,1714398639869,-150.0,0.00029989,2]
[324887214,1714398639879,-1329.78267311,0.0003,4]
[324887215,1714398639892,-154.76784823,0.0003,4]
[324887216,1714398639902,-154.76784823,0.0003,4]
[324887217,1714398639911,-154.76784823,0.0003,4]
[324887218,1714398639920,-270.0,0.0003,2]
[324887219,1714398639930,-166.666666,0.00030603,2]
[324887221,1714398639940,-150.0,0.00030989,2]
[324887222,1714398639949,-177.0,0.00031,3]
[324887223,1714398639959,-150.0,0.0003163,2]
[324887224,1714398639968,-153.34957969,0.00031789,2]
[324887225,1714398639977,-153.34957969,0.00031789,2]
[324887226,1714398639987,-977.55062889,0.00031789,2]
[324887228,1714398639996,-150.0,0.00031989,2]
[324887229,1714398640006,-638.7649893,0.00032,4]
[324887230,1714398640015,-1210.30575349,0.00032,3]
[324887231,1714398640026,-107626.84163727,0.00032,2]
[324887232,1714398640035,-2258.0,0.00032297,2]
[324887233,1714398640044,-177.75,0.000327,6]
[324887234,1714398640054,-331.64188976,0.00032876,2]
[324887235,1714398640063,-153.14380162,0.00032876,2]
[324887236,1714398640073,-3899.0,0.000329,7]
[324887237,1714398640083,-150.0,0.00032989,2]
[324887238,1714398640092,-270.0,0.00033,2]
[324887239,1714398640102,-270.0,0.00033,2]
[324887240,1714398640112,-500.0,0.000338,120]
[324887241,1714398640122,-1210.30575349,0.0003392,3]
[324887242,1714398640135,-466.35092847,0.00034,4]
[324887243,1714398640144,-500.0,0.00034,2]
[324887244,1714398640154,-153.34957969,0.00034941,10]
[324887245,1714398640163,-5914.65556104,0.00035,4]
[324887246,1714398640249,-154.76784823,0.00035,4]
[324887247,1714398640259,-555.39795402,0.00035,10]
[324887248,1714398640269,-1025.00357517,0.00035,2]
[324887249,1714398640278,-1307.89147106,0.00035,7]
[324887250,1714398640289,-326.0,0.00035,8]
[324887251,1714398640299,-153.34957969,0.00035441,13]
[324887252,1714398640308,-841.0,0.00035527,2]
[324887253,1714398640318,-1010.836234,0.00035616,120]
[324887254,1714398640328,-37810.5,0.00035616,3]
[324887255,1714398640338,-31508.75,0.00035616,3]
[324887256,1714398640347,-26257.29,0.00035616,3]
[324887257,1714398640356,-1331.33632884,0.0003584,7]
[324887258,1714398640366,-154.76784823,0.0003589,2]
[324887259,1714398640375,-160.541666,0.00035939,2]
[324887260,1714398640388,-300.0,0.00036,9]
[324887261,1714398640398,-270.0,0.00036,2]
[324887262,1714398640407,-270.0,0.00036,2]
[324887263,1714398640416,-588.0,0.000368,2]
[324887264,1714398640426,-3512.35610251,0.00037,2]
[324887265,1714398640436,-300.0,0.00037,10]
[324887266,1714398640445,-500.0,0.00037065,3]
[324887267,1714398640454,-203.7672836,0.00037276,2]
[324887268,1714398640463,-417.0323399,0.00037276,2]
[324887269,1714398640473,-150.0,0.000375,32]
[324887270,1714398640484,-1331.33632884,0.0003776,7]
[324887271,1714398640496,-300.0,0.00038,11]
[324887272,1714398640506,-150.77383924,0.00038285,2]
[324887273,1714398640515,-400.0,0.00038356,2]
[324887274,1714398640524,-301.54767848,0.00038928,4]
[324887275,1714398640535,-300.0,0.00039,12]
[324887277,1714398640544,-270.0,0.00039,2]
[324887279,1714398640553,-603.09535696,0.00039582,7]
[324887281,1714398640562,-950.09148614,0.0003968,11]
[324887283,1714398640574,-154.94731379,0.0004,2]
[324887285,1714398640584,-153.12,0.0004,120]
[324887286,1714398640593,-995.16145114,0.0004,10]
[324887287,1714398640602,-4253.66286157,0.0004,4]
[324887288,1714398640612,-300.0,0.0004,14]
[324887289,1714398640621,-381.0,0.0004,15]
[324887290,1714398640631,-4999.999999,0.0004,120]
[324887291,1714398640645,-169.366558,0.0004,2]
[324887292,1714398640654,-5017.8316877,0.00040071,3]
[324887293,1714398640664,-157.69409561,0.00040071,4]
[324887294,1714398640674,-59189.32928802,0.00040071,4]
[324887295,1714398640684,-220.51178655,0.00040071,4]
[324887296,1714398640693,-1014.10706898,0.00040071,23]
[324887297,1714398640703,-2401.59068717,0.00040073,2]
[324887298,1714398640712,-154.76784823,0.00040073,4]
[324887299,1714398640721,-218.86419774,0.00040073,4]
[324887300,1714398640731,-16270.35773535,0.00040073,120]
[324887301,1714398640740,-154.76784823,0.00040073,15]
[324887302,1714398640751,-1452.47576498,0.00040073,4]
[324887303,1714398640760,-171.83352015,0.00040073,2]
[324887304,1714398640769,-2000.0,0.00040073,2]
[324887305,1714398640778,-197.52613622,0.00040073,7]
[324887306,1714398640787,-165.3645345,0.00040073,4]
[324887307,1714398640797,-150.5,0.0004008,35]
[324887308,1714398640807,-150.5,0.0004009,35]
[324887309,1714398640817,-167.52,0.0004009,35]
[324887310,1714398640826,-1323.2636,0.000401,2]
[324887311,1714398640836,-13772.3960811,0.0004013,2]
[324887312,1714398640845,-150.5,0.0004017,35]
[324887313,1714398640855,-263.0,0.0004017,35]
[324887314,1714398640864,-150.5,0.0004017,35]
[324887315,1714398640874,-263.0,0.0004018,35]
[324887316,1714398640885,-150.5,0.0004018,35]
[324887317,1714398640894,-153.41,0.0004019,35]
[324887318,1714398640903,-263.0,0.0004019,35]
[324887319,1714398640913,-150.5,0.0004019,35]
[324887320,1714398640923,-386181.03962542,0.000402,2]
[324887321,1714398641054,-435.47003906,0.000402,2]
[324887322,1714398641066,-10223.59297646,0.000402,2]
[324887323,1714398641095,-2747.14,0.000402,2]
[324887355,1714398644767,-1560.5,0.000402,2]
[324887367,1714398646547,-549.90202406,0.00020913,2]
[324887368,1714398646560,-2752.23,0.00020913,2]
[324887369,1714398646572,-927.6,0.00020913,2]
[324887370,1714398646602,-9314.99999996,0.00020913,2]
[324887434,1714399264030,642.53781715,9.999e-05,2]
[324887435,1714399287458,157.93274369,9.999e-05,2]
[324887443,1714399554139,-150.94294535,0.00014999,2]
[324887444,1714399753137,-1879.62800973,0.00014727,2]
[324887445,1714399753158,-300.0,0.00014728,2]
[324887446,1714399753178,-312.89043206,0.00015,2]
[324887447,1714399753198,-166.666666,0.00015053,2]
[324887448,1714399753219,-306.7805408,0.00015423,2]
[324887480,1714399831864,-1267.28614934,0.00015925,2]
[324887486,1714399831922,-307.35103979,0.00015925,2]
[324887488,1714399831932,-7313.6684305,0.00015925,2]
[324887490,1714399831945,-51896.92342335,0.00015925,2]
[324887491,1714399831954,-312.89043206,0.00015925,2]
[324887493,1714399831963,-300.0,0.00015925,2]
[324887495,1714399831972,-300.0,0.00015925,2]
[324887497,1714399831982,-20195.8243466,0.00015926,2]
[324887499,1714399831992,-1205.58607998,0.00016097,2]
[324887501,1714399832003,-942.6785004,0.00016164,2]
[324887503,1714399832012,-1018.87176114,0.00016195,2]
[324887505,1714399832021,-272.7929159,0.000165,2]
[324887506,1714399832031,-155.06896454,0.0001663,2]
[324887508,1714399832041,-591.49814438,0.00016634,2]
[324887510,1714399832051,-204.6170675,0.00017226,2]
[324887512,1714399832060,-150.0,0.0001742,3]
[324887514,1714399832069,-403.64009312,0.00017506,2]
[324887516,1714399832079,-977.94969331,0.00017509,2]
[324887527,1714399832188,-420.0,0.00017517,2]
[324887529,1714399832198,-189.36782433,0.00018,2]
[324887531,1714399832208,-160.988277,0.00019178,2]
[324887532,1714399832218,-161.014561,0.00019178,2]
[324887534,1714399832227,-161.000501,0.00019178,2]
[324887536,1714399832236,-44444.0,0.000192,2]
[324887538,1714399832245,-587.0,0.00019269,2]
[324887540,1714399832255,-157.96746114,0.00019298,2]
[324887542,1714399832264,-22462.33001169,0.000193,2]
[324887544,1714399832275,-569.0,0.000193,2]
[324887546,1714399832286,-3937.36815683,0.000193,2]
[324888038,1714399837947,-262.17267675,0.00019199,2]
[324888040,1714399837957,-976.78399899,0.000193,2]
[324888045,1714399838003,-214037.96244975,0.000193,2]
[324888047,1714399838016,-168217.44461483,0.000193,2]
[324888049,1714399838026,-366.4955471,0.000195,2]
[324888051,1714399838035,-155.20007848,0.00019891,2]
[324888053,1714399838046,-1676.92552467,0.00019891,2]
[324888055,1714399838056,-183.80738667,0.00019891,2]
[324888058,1714399838065,-1496.8044313,0.00019891,2]
[324888061,1714399838075,-155.05459913,0.00019891,2]
[324888063,1714399838084,-7934.04214632,0.00019892,2]
[324888065,1714399838095,-1025.04188415,0.00019893,2]
[324888067,1714399838106,-939.34960788,0.00019893,2]
[324888068,1714399838116,-326.79171644,0.00019893,2]
[324888070,1714399838128,-2136.0411417,0.00019893,2]
[324888072,1714399838138,-220.51178655,0.00019894,2]
[324888074,1714399838148,-155.01275043,0.00019999,2]
[324888075,1714399838157,-525.01331286,0.0002,4]
[324888076,1714399838167,-165.3645345,0.0002,2]
[324888078,1714399838177,-2750.81470958,0.0002,2]
[324888080,1714399838187,-10481.03229319,0.0002,2]
[324888082,1714399838196,-329.93912296,0.0002,2]
[324888084,1714399838206,-257.11709783,0.0002,2]
[324888085,1714399838216,-154.76784823,0.0002,2]
[324888087,1714399838225,-241.68429594,0.0002,2]
[324888088,1714399838235,-67415.61392424,0.0002,2]
[324888089,1714399838245,-200.0,0.0002,2]
[324888090,1714399838254,-1205.58607994,0.00020863,2]
[324888091,1714399838263,-2128.61400184,0.00020912,2]
[324888092,1714399838273,-159.98045359,0.00020913,2]
[324888093,1714399838284,-1564.03593502,0.00020913,2]
[324888094,1714399838294,-154.76784823,0.00020913,2]
[324888095,1714399838304,-10596.07047515,0.00020913,2]
[324888096,1714399838314,-729.7450776,0.00020913,2]
[324888097,1714399838325,-247.11113509,0.00020913,2]
[324888098,1714399838335,-202.16473977,0.00020913,2]
[324888099,1714399838344,-823.0,0.00021196,2]
[324888100,1714399838354,-10000.0,0.00021918,2]
[324888101,1714399838364,-154.76784823,0.00022,2]
[324888102,1714399838376,-2000.0,0.00022,2]
[324888103,1714399838386,-159.19819518,0.00022,2]
[324888104,1714399838395,-367.15409754,0.000223,2]
[324888105,1714399838405,-163.852778,0.00022466,2]
[324888106,1714399838415,-486.43611,0.00022466,2]
[324888107,1714399838424,-714.0781204,0.00023,2]
[324888108,1714399838433,-1152.0,0.00023315,2]
[324888109,1714399838442,-693.32219262,0.00024,2]
[324888110,1714399838452,-500.0,0.00024657,2]
[324888111,1714399838462,-380.0,0.00024658,2]
[324888112,1714399838473,-154.76784823,0.00025,2]